fUSD/lending_fUSD_20250616
["ID","MTS","AMOUNT","RATE_DAILY","PERIOD"]
[366124788,1750077040345,-490.0,0.00016438,2]
[366124790,1750077040355,-490.0,0.00016438,2]
[366124792,1750077040365,-490.0,0.00016438,2]
[366124794,1750077040376,-1409.35,0.00016438,2]
[366124795,1750077040387,-490.0,0.00016438,2]
[366124797,1750077040397,-1855.07,0.00016438,2]
[366124800,1750077040408,-383.55192468,0.00016438,2]
[366124802,1750077040418,-490.0,0.00016438,2]
[366124803,1750077040428,-490.0,0.00016438,2]
[366124805,1750077040438,-490.0,0.00016438,2]
[366124807,1750077040448,-1232.71,0.00016438,2]
[366124809,1750077040459,-490.0,0.00016438,2]
[366124811,1750077040469,-1191.87,0.00016438,2]
[366124813,1750077040479,-526.09,0.00016438,2]
[366124815,1750077040490,-490.0,0.00016438,2]
[366124817,1750077040500,-490.0,0.00016438,2]
[366124819,1750077040510,-490.0,0.00016438,2]
[366124821,1750077040520,-662.02,0.00016438,2]
[366124823,1750077040530,-985.63,0.00016438,2]
[366124825,1750077040540,-634.64,0.00016438,2]
[366124827,1750077040550,-490.0,0.00016438,2]
[366124829,1750077040561,-500.0,0.00016438,2]
[366124831,1750077040572,-490.0,0.00016438,2]
[366124833,1750077040582,-490.0,0.00016438,2]
[366124835,1750077040591,-530.15,0.00016438,2]
[366124837,1750077040601,-490.0,0.00016438,2]
[366124839,1750077040611,-490.0,0.00016438,2]
[366124841,1750077040621,-172.01521473,0.00016438,2]
[366124843,1750077040631,-491.15022843,0.00016438,2]
[366124845,1750077040647,-490.0,0.00016438,2]
[366124847,1750077040657,-1443.19,0.00016438,2]
[366124850,1750077040667,-490.0,0.00016438,2]
[366124852,1750077040676,-490.0,0.00016438,2]
[366124854,1750077040686,-490.0,0.00016438,2]
[366124856,1750077040696,-490.0,0.00016438,2]
[366124858,1750077040707,-490.0,0.00016438,2]
[366124860,1750077040718,-853.0,0.00016438,2]
[366124862,1750077040728,-2257.81,0.00016438,2]
[366124864,1750077040737,-350.0,0.00016438,2]
[366124866,1750077040748,-173.69551287,0.00016438,2]
[366124868,1750077040759,-490.0,0.00016438,2]
[366124870,1750077040770,-490.0,0.00016438,2]
[366124872,1750077040780,-490.0,0.00016438,2]
[366124873,1750077040790,-482.16296124,0.00016438,2]
[366124874,1750077040801,-706.54,0.00016438,2]
[366124875,1750077040811,-1636.73,0.00016438,2]
[366124876,1750077040821,-628.14,0.00016438,2]
[366124877,1750077040831,-497.56,0.00016438,2]
[366124878,1750077040842,-490.0,0.00016438,2]
[366124879,1750077040852,-791.96,0.00016438,2]
[366124880,1750077040862,-490.0,0.00016438,2]
[366124881,1750077040872,-490.0,0.00016438,2]
[366124882,1750077040882,-490.0,0.00016438,2]
[366124883,1750077040892,-490.0,0.00016438,2]
[366124884,1750077040902,-1493.27,0.00016438,2]
[366124886,1750077040912,-791.25,0.00016438,2]
[366124887,1750077040922,-490.0,0.00016438,2]
[366124889,1750077040931,-1069.67,0.00016438,2]
[366124892,1750077040941,-490.0,0.00016438,2]
[366124894,1750077040952,-490.0,0.00016438,2]
[366124896,1750077040962,-610.32,0.00016438,2]
[366124898,1750077040972,-490.0,0.00016438,2]
[366124900,1750077040981,-591.93,0.00016438,2]
[366124902,1750077040991,-490.0,0.00016438,2]
[366124904,1750077041000,-1170.39,0.00016438,2]
[366124906,1750077041010,-490.0,0.00016438,2]
[366124908,1750077041020,-461.36331293,0.00016438,2]
[366124910,1750077041029,-1108.6,0.00016438,2]
[366124912,1750077041039,-490.0,0.00016438,2]
[366124914,1750077041049,-603.94,0.00016438,2]
[366124916,1750077041059,-491.05003809,0.00016438,2]
[366124918,1750077041069,-490.0,0.00016438,2]
[366124920,1750077041079,-490.0,0.00016438,2]
[366124922,1750077041089,-490.0,0.00016438,2]
[366124924,1750077041099,-490.0,0.00016438,2]
[366124926,1750077041109,-491.04007856,0.00016438,2]
[366124928,1750077041119,-1093.08,0.00016438,2]
[366124930,1750077041129,-492.18697514,0.00016438,2]
[366124932,1750077041138,-465.5361354,0.00016438,2]
[366124934,1750077041148,-490.0,0.00016438,2]
[366124936,1750077041158,-718.24,0.00016438,2]
[366124938,1750077041167,-490.0,0.00016438,2]
[366124940,1750077041177,-766.79,0.00016438,2]
[366124942,1750077041187,-490.0,0.00016438,2]
[366124944,1750077041198,-495.10787806,0.00016438,2]
[366124947,1750077041208,-490.0,0.00016438,2]
[366124949,1750077041218,-827.04,0.00016438,2]
[366124951,1750077041228,-618.77,0.00016438,2]
[366124953,1750077041237,-490.0,0.00016438,2]
[366124954,1750077041246,-1461.9,0.00016438,2]
[366124957,1750077041256,-827.14,0.00016438,2]
[366124959,1750077041266,-490.0,0.00016438,2]
[366124961,1750077041277,-1170.53,0.00016438,2]
[366124963,1750077041287,-490.0,0.00016438,2]
[366124965,1750077041297,-1869.85,0.00016438,2]
[366124967,1750077041307,-159.843096,0.00016438,2]
[366124969,1750077041317,-8104.00542,0.00016438,2]
[366124981,1750077041430,-8104.00542,0.00016438,2]
[366124984,1750077041441,-8104.00542,0.00016438,2]
[366124986,1750077041451,-8104.00542,0.00016438,2]
[366124987,1750077041461,-490.0,0.00016438,2]
[366124989,1750077041470,-8104.00542,0.00016438,2]
[366124991,1750077041480,-490.0,0.00016438,2]
[366124994,1750077041490,-491.76106094,0.00016438,2]
[366124996,1750077041499,-490.0,0.00016438,2]
[366124997,1750077041508,-1474.25,0.00016438,2]
[366124999,1750077041518,-490.0,0.00016438,2]
[366125002,1750077041528,-1239.37,0.00016438,2]
[366125004,1750077041538,-490.0,0.00016438,2]
[366125006,1750077041547,-1271.92,0.00016438,2]
[366125007,1750077041557,-505.93,0.00016438,2]
[366125009,1750077041566,-490.0,0.00016438,2]
[366125011,1750077041576,-1031.01,0.00016438,2]
[366125013,1750077041585,-490.0,0.00016438,2]
[366125016,1750077041595,-490.0,0.00016438,2]
[366125018,1750077041605,-490.0,0.00016438,2]
[366125020,1750077041615,-490.0,0.00016438,2]
[366125022,1750077041624,-490.0,0.00016438,2]
[366125024,1750077041634,-761.4,0.00016438,2]
[366125025,1750077041648,-967.66,0.00016438,2]
[366125028,1750077041658,-1425.08,0.00016438,2]
[366125030,1750077041668,-1125.89,0.00016438,2]
[366125032,1750077041678,-493.05886358,0.00016438,2]
[366125034,1750077041687,-678.3,0.00016438,2]
[366125036,1750077041697,-490.0,0.00016438,2]
[366125038,1750077041706,-1317.39,0.00016438,2]
[366125040,1750077041718,-6270.791816,0.00016438,2]
[366125042,1750077041728,-6270.791816,0.00016438,2]
[366125044,1750077041738,-6270.791816,0.00016438,2]
[366125046,1750077041747,-6270.791816,0.00016438,2]
[366125048,1750077041758,-490.0,0.00016438,2]
[366125050,1750077041768,-6270.791816,0.00016438,2]
[366125051,1750077041778,-792.39,0.00016438,2]
[366125053,1750077041788,-490.0,0.00016438,2]
[366125055,1750077041797,-2945.18,0.00016438,2]
[366125057,1750077041807,-1821.28,0.00016438,2]
[366125059,1750077041817,-490.0,0.00016438,2]
[366125061,1750077041827,-1653.39,0.00016438,2]
[366125064,1750077041837,-490.0,0.00016438,2]
[366125066,1750077041846,-490.0,0.00016438,2]
[366125067,1750077041856,-491.75299176,0.00016438,2]
[366125070,1750077041866,-490.0,0.00016438,2]
[366125071,1750077041876,-490.0,0.00016438,2]
[366125073,1750077041886,-490.0,0.00016438,2]
[366125076,1750077041895,-973.83,0.00016438,2]
[366125077,1750077041905,-490.0,0.00016438,2]
[366125079,1750077041914,-1839.36,0.00016438,2]
[366125081,1750077041923,-490.0,0.00016438,2]
[366125084,1750077041932,-490.0,0.00016438,2]
[366125085,1750077041943,-490.0,0.00016438,2]
[366125088,1750077041953,-490.0,0.00016438,2]
[366125090,1750077041962,-490.0,0.00016438,2]
[366125092,1750077041972,-490.0,0.00016438,2]
[366125094,1750077041981,-490.0,0.00016438,2]
[366125095,1750077041991,-2150.85,0.00016438,2]
[366125097,1750077042000,-490.0,0.00016438,2]
[366125100,1750077042011,-490.0,0.00016438,2]
[366125102,1750077042020,-490.0,0.00016438,2]
[366125104,1750077042030,-490.0,0.00016438,2]
[366125105,1750077042040,-492.62920681,0.00016438,2]
[366125108,1750077042050,-1836.43,0.00016438,2]
[366125109,1750077042059,-490.0,0.00016438,2]
[366125111,1750077042069,-490.0,0.00016438,2]
[366125113,1750077042078,-3419.44,0.00016438,2]
[366125115,1750077042088,-1347.8,0.00016438,2]
[366125117,1750077042097,-490.0,0.00016438,2]
[366125119,1750077042107,-490.0,0.00016438,2]
[366125121,1750077042116,-490.87233245,0.00016438,2]
[366125123,1750077042125,-490.0,0.00016438,2]
[366125125,1750077042134,-744.37,0.00016438,2]
[366125127,1750077042144,-491.54087021,0.00016438,2]
[366125129,1750077042154,-502.46,0.00016438,2]
[366125131,1750077042164,-490.0,0.00016438,2]
[366125133,1750077042173,-490.71759201,0.00016438,2]
[366125135,1750077042182,-8658.86,0.00016438,2]
[366125137,1750077042192,-490.0,0.00016438,2]
[366125139,1750077042202,-1235.58,0.00016438,2]
[366125141,1750077042211,-490.0,0.00016438,2]
[366125143,1750077042221,-490.0,0.00016438,2]
[366125145,1750077042230,-490.0,0.00016438,2]
[366125147,1750077042240,-490.0,0.00016438,2]
[366125149,1750077042250,-17471.08,0.00016438,2]
[366125151,1750077042260,-490.0,0.00016438,2]
[366125153,1750077042269,-4062.86,0.00016438,2]
[366125155,1750077042279,-490.0,0.00016438,2]
[366125157,1750077042288,-8842.28,0.00016438,2]
[366125159,1750077042297,-490.0,0.00016438,2]
[366125161,1750077042307,-1959.87,0.00016438,2]
[366125163,1750077042316,-490.0,0.00016438,2]
[366125165,1750077042325,-490.0,0.00016438,2]
[366125167,1750077042334,-490.0,0.00016438,2]
[366125169,1750077042343,-1153.99,0.00016438,2]
[366125171,1750077042353,-490.0,0.00016438,2]
[366125173,1750077042363,-602.44,0.00016438,2]
[366125175,1750077042372,-490.0,0.00016438,2]
[366125177,1750077042382,-1138.77,0.00016438,2]
[366125179,1750077042391,-490.0,0.00016438,2]
[366125181,1750077042401,-490.0,0.00016438,2]
[366125183,1750077042410,-640.55,0.00016438,2]
[366125185,1750077042420,-1030.49,0.00016438,2]
[366125187,1750077042430,-508.62,0.00016438,2]
[366125189,1750077042439,-755.78,0.00016438,2]
[366125192,1750077042449,-1650.68,0.00016438,2]
[366125194,1750077042459,-490.0,0.00016438,2]
[366125195,1750077042469,-490.0,0.00016438,2]
[366125198,1750077042479,-490.0,0.00016438,2]
[366125200,1750077042489,-9138.08,0.00016438,2]
[366125202,1750077042499,-1559.15,0.00016438,2]
[366125204,1750077042508,-490.0,0.00016438,2]
[366125206,1750077042517,-2288.95,0.00016438,2]
[366125208,1750077042528,-659.08,0.00016438,2]
[366125210,1750077042538,-252.71217336,0.00016438,2]
[366125212,1750077042548,-1874.34,0.00016438,2]
[366125214,1750077042558,-1194.95,0.00016438,2]
[366125216,1750077042568,-2369.43,0.00016438,2]
[366125218,1750077042578,-490.0,0.00016438,2]
[366125221,1750077042600,-3302.37,0.00016438,2]
[366125223,1750077042611,-2085.24,0.00016438,2]
[366125226,1750077042622,-490.0,0.00016438,2]
[366125228,1750077042633,-490.0,0.00016438,2]
[366125230,1750077042647,-1711.96,0.00016438,2]
[366125232,1750077042657,-490.0,0.00016438,2]
[366125234,1750077042667,-1047.6,0.00016438,2]
[366125236,1750077042677,-490.0,0.00016438,2]
[366125238,1750077042688,-490.0,0.00016438,2]
[366125240,1750077042699,-490.0,0.00016438,2]
[366125242,1750077042709,-490.0,0.00016438,2]
[366125244,1750077042720,-1786.54,0.00016438,2]
[366125246,1750077042731,-1330.81,0.00016438,2]
[366125248,1750077042741,-807.28,0.00016438,2]
[366125250,1750077042751,-5050.51,0.00016438,2]
[366125252,1750077042761,-490.0,0.00016438,2]
[366125255,1750077042772,-490.0,0.00016438,2]
[366125257,1750077042781,-490.0,0.00016438,2]
[366125259,1750077042791,-490.0,0.00016438,2]
[366125261,1750077042801,-403.51221179,0.00016438,2]
[366125263,1750077042810,-490.0,0.00016438,2]
[366125265,1750077042820,-490.0,0.00016438,2]
[366125267,1750077042830,-490.0,0.00016438,2]
[366125269,1750077042839,-1037.83,0.00016438,2]
[366125271,1750077042849,-586.57,0.00016438,2]
[366125273,1750077042859,-490.0,0.00016438,2]
[366125275,1750077042868,-1919.56,0.00016438,2]
[366125277,1750077042878,-541.53,0.00016438,2]
[366125279,1750077042887,-1158.92,0.00016438,2]
[366125281,1750077042898,-1121.29,0.00016438,2]
[366125283,1750077042907,-1021.57,0.00016438,2]
[366125285,1750077042917,-1429.35,0.00016438,2]
[366125287,1750077042926,-553.17,0.00016438,2]
[366125289,1750077042936,-884.9,0.00016438,2]
[366125291,1750077042946,-490.0,0.00016438,2]
[366125293,1750077042957,-490.0,0.00016438,2]
[366125295,1750077042966,-490.0,0.00016438,2]
[366125298,1750077042977,-492.10489932,0.00016438,2]
[366125300,1750077042987,-515.25,0.00016438,2]
[366125301,1750077042997,-490.0,0.00016438,2]
[366125302,1750077043007,-490.0,0.00016438,2]
[366125303,1750077043017,-1033.82,0.00016438,2]
[366125304,1750077043027,-77.99682223,0.00016438,2]
[366125529,1750077045329,-156.352,0.00016375,2]
[366125531,1750077045339,-563.17877796,0.000164,2]
[366125533,1750077045349,-563.17877796,0.000164,2]
[366125535,1750077045358,-218.69187423,0.00016417,2]
[366125538,1750077045370,-344.48690373,0.00016417,2]
[366125540,1750077045380,-405.2035718,0.00016438,2]
[366125543,1750077045399,-6.79960597,0.00016438,2]
[366125545,1750077045409,-3417.72,0.00016438,2]
[366125547,1750077045419,-490.0,0.00016438,2]
[366125549,1750077045428,-1745.47,0.00016438,2]
[366125551,1750077045439,-4225.52,0.00016438,2]
[366125553,1750077045449,-3121.15,0.00016438,2]
[366125555,1750077045459,-1400.39,0.00016438,2]
[366125556,1750077045469,-490.0,0.00016438,2]
[366125559,1750077045479,-490.0,0.00016438,2]
[366125560,1750077045488,-490.0,0.00016438,2]
[366125562,1750077045498,-495.12451629,0.00016438,2]
[366125565,1750077045508,-1581.09,0.00016438,2]
[366125567,1750077045518,-6031.46,0.00016438,2]
[366125569,1750077045527,-935.53,0.00016438,2]
[366125571,1750077045537,-1190.92,0.00016438,2]
[366125573,1750077045547,-2794.66,0.00016438,2]
[366125575,1750077045556,-490.0,0.00016438,2]
[366125577,1750077045565,-2053.82,0.00016438,2]
[366125579,1750077045575,-1219.04,0.00016438,2]
[366125581,1750077045584,-493.25456761,0.00016438,2]
[366125583,1750077045595,-490.0,0.00016438,2]
[366125585,1750077045604,-490.37224064,0.00016438,2]
[366125587,1750077045613,-934.31,0.00016438,2]
[366125589,1750077045623,-1466.3,0.00016438,2]
[366125591,1750077045633,-490.0,0.00016438,2]
[366125593,1750077045647,-490.0,0.00016438,2]
[366125595,1750077045656,-842.02,0.00016438,2]
[366125597,1750077045666,-490.0,0.00016438,2]
[366125599,1750077045675,-3378.79,0.00016438,2]
[366125601,1750077045686,-636.74,0.00016438,2]
[366125603,1750077045696,-490.0,0.00016438,2]
[366125605,1750077045706,-702.84,0.00016438,2]
[366125607,1750077045718,-490.0,0.00016438,2]
[366125609,1750077045727,-2431.09,0.00016438,2]
[366125611,1750077045737,-490.0,0.00016438,2]
[366125613,1750077045747,-1120.17,0.00016438,2]
[366125615,1750077045757,-490.0,0.00016438,2]
[366125617,1750077045767,-490.0,0.00016438,2]
[366125619,1750077045776,-490.0,0.00016438,2]
[366125621,1750077045787,-2683.29,0.00016438,2]
[366125623,1750077045797,-490.0,0.00016438,2]
[366125625,1750077045807,-946.0,0.00016438,2]
[366125627,1750077045816,-490.0,0.00016438,2]
[366125630,1750077045829,-490.0,0.00016438,2]
[366125631,1750077045838,-490.0,0.00016438,2]
[366125633,1750077045848,-453.10325061,0.00016438,2]
[366125635,1750077045858,-902.9,0.00016438,2]
[366125638,1750077045869,-490.0,0.00016438,2]
[366125640,1750077045878,-3610.27,0.00016438,2]
[366125642,1750077045888,-490.0,0.00016438,2]
[366125644,1750077045898,-490.0,0.00016438,2]
[366125646,1750077045907,-490.0,0.00016438,2]
[366125648,1750077045918,-1086.89,0.00016438,2]
[366125650,1750077045927,-4993.52,0.00016438,2]
[366125652,1750077045937,-1261.87,0.00016438,2]
[366125654,1750077045946,-3787.53,0.00016438,2]
[366125656,1750077045956,-490.0,0.00016438,2]
[366125658,1750077045965,-490.0,0.00016438,2]
[366125660,1750077045975,-490.0,0.00016438,2]
[366125662,1750077045985,-490.0,0.00016438,2]
[366125664,1750077045995,-1748.41,0.00016438,2]
[366125666,1750077046005,-497.49,0.00016438,2]
[366125668,1750077046014,-774.68,0.00016438,2]
[366125670,1750077046024,-1717.93,0.00016438,2]
[366125672,1750077046035,-490.0,0.00016438,2]
[366125674,1750077046045,-1387.22,0.00016438,2]
[366125676,1750077046054,-20013.69,0.00016438,2]
[366125678,1750077046064,-1059.14,0.00016438,2]
[366125680,1750077046075,-2620.59,0.00016438,2]
[366125682,1750077046084,-500.0,0.00016438,2]
[366125684,1750077046093,-490.0,0.00016438,2]
[366125686,1750077046103,-490.0,0.00016438,2]
[366125688,1750077046114,-770.6,0.00016438,2]
[366125690,1750077046125,-3736.2,0.00016438,2]
[366125692,1750077046135,-502.67955081,0.00016438,2]
[366125694,1750077046145,-9644.96,0.00016438,2]
[366125696,1750077046155,-8232.18,0.00016438,2]
[366125698,1750077046165,-490.0,0.00016438,2]
[366125700,1750077046175,-490.0,0.00016438,2]
[366125702,1750077046185,-1635.89,0.00016438,2]
[366125704,1750077046195,-909.37,0.00016438,2]
[366125706,1750077046204,-490.0,0.00016438,2]
[366125708,1750077046215,-490.0,0.00016438,2]
[366125710,1750077046226,-490.0,0.00016438,2]
[366125712,1750077046236,-490.0,0.00016438,2]
[366125714,1750077046246,-1390.66,0.00016438,2]
[366125716,1750077046256,-7874.18,0.00016438,2]
[366125718,1750077046266,-500.0,0.00016438,2]
[366125720,1750077046276,-500.0,0.00016438,2]
[366125722,1750077046287,-500.0,0.00016438,2]
[366125724,1750077046297,-490.0,0.00016438,2]
[366125726,1750077046306,-500.0,0.00016438,2]
[366125728,1750077046316,-490.0,0.00016438,2]
[366125730,1750077046326,-1861.92,0.00016438,2]
[366125732,1750077046338,-4264.94,0.00016438,2]
[366125734,1750077046348,-1000.09,0.00016438,2]
[366125736,1750077046357,-490.0,0.00016438,2]
[366125739,1750077046367,-2227.41,0.00016438,2]
[366125741,1750077046377,-490.0,0.00016438,2]
[366125743,1750077046386,-5198.22,0.00016438,2]
[366125745,1750077046397,-356.7813325,0.00016438,2]
[366125747,1750077046408,-1836.81,0.00016438,2]
[366125749,1750077046418,-420.82110946,0.00016438,2]
[366125751,1750077046428,-490.0,0.00016438,2]
[366125753,1750077046438,-490.0,0.00016438,2]
[366125755,1750077046448,-5639.7,0.00016438,2]
[366125757,1750077046458,-490.0,0.00016438,2]
[366125759,1750077046468,-490.0,0.00016438,2]
[366125761,1750077046478,-490.0,0.00016438,2]
[366125763,1750077046489,-1281.03,0.00016438,2]
[366125765,1750077046499,-490.0,0.00016438,2]
[366125767,1750077046509,-490.0,0.00016438,2]
[366125769,1750077046518,-1929.75,0.00016438,2]
[366125771,1750077046528,-2739.93,0.00016438,2]
[366125773,1750077046538,-1858.15,0.00016438,2]
[366125775,1750077046547,-1530.87,0.00016438,2]
[366125777,1750077046557,-900.16,0.00016438,2]
[366125779,1750077046567,-490.0,0.00016438,2]
[366125781,1750077046577,-490.0,0.00016438,2]
[366125783,1750077046587,-490.0,0.00016438,2]
[366125785,1750077046597,-901.02,0.00016438,2]
[366125788,1750077046607,-490.0,0.00016438,2]
[366125790,1750077046617,-241.41855985,0.00016438,2]
[366125792,1750077046627,-2912.58,0.00016438,2]
[366125793,1750077046638,-490.0,0.00016438,2]
[366125795,1750077046650,-1231.12,0.00016438,2]
[366125797,1750077046661,-1938.95,0.00016438,2]
[366125799,1750077046671,-768.88,0.00016438,2]
[366125801,1750077046681,-633.72,0.00016438,2]
[366125804,1750077046691,-606.91,0.00016438,2]
[366125806,1750077046702,-492.27626729,0.00016438,2]
[366125808,1750077046712,-10154.58,0.00016438,2]
[366125810,1750077046722,-490.0,0.00016438,2]
[366125811,1750077046731,-500.0,0.00016438,2]
[366125814,1750077046741,-500.0,0.00016438,2]
[366125815,1750077046751,-490.0,0.00016438,2]
[366125818,1750077046760,-500.0,0.00016438,2]
[366125819,1750077046770,-440.0,0.00016438,2]
[366125822,1750077046783,-490.0,0.00016438,2]
[366125824,1750077046793,-1362.67,0.00016438,2]
[366125826,1750077046803,-491.42602028,0.00016438,2]
[366125828,1750077046813,-818.62,0.00016438,2]
[366125830,1750077046823,-1289.31,0.00016438,2]
[366125832,1750077046835,-490.0,0.00016438,2]
[366125834,1750077046845,-695.53,0.00016438,2]
[366125836,1750077046855,-490.0,0.00016438,2]
[366125838,1750077046865,-4047.15,0.00016438,2]
[366125840,1750077046874,-6521.69,0.00016438,2]
[366125842,1750077046883,-1118.12,0.00016438,2]
[366125844,1750077046893,-1844.38,0.00016438,2]
[366125846,1750077046903,-490.0,0.00016438,2]
[366125848,1750077046912,-490.0,0.00016438,2]
[366125850,1750077046922,-490.0,0.00016438,2]
[366125851,1750077046931,-779.44,0.00016438,2]
[366125852,1750077046941,-490.0,0.00016438,2]
[366125853,1750077046950,-490.0,0.00016438,2]
[366125854,1750077046961,-2810.51,0.00016438,2]
[366125855,1750077046971,-490.0,0.00016438,2]
[366125856,1750077046981,-3293.23,0.00016438,2]
[366125857,1750077046991,-758.4,0.00016438,2]
[366125858,1750077047001,-333.25972153,0.00016438,2]
[366125860,1750077047011,-2534.55,0.00016438,2]
[366125862,1750077047022,-1885.47,0.00016438,2]
[366125863,1750077047032,-490.0,0.00016438,2]
[366125866,1750077047043,-490.67812381,0.00016438,2]
[366125868,1750077047052,-1484.87,0.00016438,2]
[366125870,1750077047061,-494.9207247,0.00016438,2]
[366125872,1750077047072,-1198.44,0.00016438,2]
[366125874,1750077047081,-1149.8,0.00016438,2]
[366125876,1750077047091,-153.44061286,0.00016438,2]
[366125878,1750077047100,-534.22,0.00016438,2]
[366125880,1750077047110,-491.51568208,0.00016438,2]
[366125882,1750077047119,-490.0,0.00016438,2]
[366125884,1750077047128,-2115.66,0.00016438,2]
[366125886,1750077047138,-491.05134449,0.00016438,2]
[366125888,1750077047148,-490.0,0.00016438,2]
[366125890,1750077047158,-490.0,0.00016438,2]
[366125892,1750077047168,-490.0,0.00016438,2]
[366125894,1750077047178,-1285.35,0.00016438,2]
[366125896,1750077047188,-490.0,0.00016438,2]
[366125898,1750077047198,-1522.36,0.00016438,2]
[366125900,1750077047208,-1819.41,0.00016438,2]
[366125902,1750077047217,-641.1,0.00016438,2]
[366125904,1750077047227,-651.95,0.00016438,2]
[366125906,1750077047236,-490.0,0.00016438,2]
[366125908,1750077047246,-876.96,0.00016438,2]
[366125910,1750077047255,-491.39181551,0.00016438,2]
[366125912,1750077047264,-1253.46,0.00016438,2]
[366125914,1750077047274,-490.0,0.00016438,2]
[366125916,1750077047283,-490.0,0.00016438,2]
[366125918,1750077047293,-500.0,0.00016438,2]
[366125920,1750077047303,-1152.82,0.00016438,2]
[366125922,1750077047312,-2903.67,0.00016438,2]
[366125924,1750077047323,-931.85,0.00016438,2]
[366125926,1750077047333,-490.0,0.00016438,2]
[366125928,1750077047343,-490.0,0.00016438,2]
[366125930,1750077047352,-490.0,0.00016438,2]
[366125932,1750077047363,-20420.68,0.00016438,2]
[366125934,1750077047373,-2386.59,0.00016438,2]
[366125936,1750077047383,-2386.59,0.00016438,2]
[366125938,1750077047392,-2386.59,0.00016438,2]
[366125940,1750077047402,-490.0,0.00016438,2]
[366125943,1750077047412,-908.67,0.00016438,2]
[366125945,1750077047422,-490.0,0.00016438,2]
[366125947,1750077047432,-1625.34,0.00016438,2]
[366125949,1750077047442,-490.0,0.00016438,2]
[366125951,1750077047451,-490.0,0.00016438,2]
[366125953,1750077047465,-800.0,0.00016438,2]
[366125955,1750077047475,-1000.0,0.00016438,3]
[366125957,1750077047484,-1000.0,0.00016438,3]
[366125997,1750077047880,-1000.0,0.00016438,3]
[366126000,1750077047891,-1000.0,0.00016438,3]
[366126002,1750077047901,-1000.0,0.00016438,3]
[366126004,1750077047911,-1000.0,0.00016438,3]
[366126006,1750077047921,-1000.0,0.00016438,3]
[366126008,1750077047930,-1000.0,0.00016438,3]
[366126010,1750077047941,-1000.0,0.00016438,3]
[366126012,1750077047950,-1000.0,0.00016438,3]
[366126014,1750077047963,-1000.0,0.00016438,3]
[366126016,1750077047973,-1000.0,0.00016438,3]
[366126018,1750077047983,-1000.0,0.00016438,3]
[366126020,1750077047993,-1000.0,0.00016438,3]
[366126022,1750077048002,-1000.0,0.00016438,3]
[366126024,1750077048012,-1000.0,0.00016438,3]
[366126026,1750077048022,-1000.0,0.00016438,3]
[366126028,1750077048032,-1000.0,0.00016438,3]
[366126030,1750077048042,-1000.0,0.00016438,3]
[366126032,1750077048052,-1000.0,0.00016438,3]
[366126034,1750077048062,-1000.0,0.00016438,3]
[366126036,1750077048072,-1000.0,0.00016438,3]
[366126038,1750077048082,-1000.0,0.00016438,3]
[366126040,1750077048092,-1000.0,0.00016438,3]
[366126042,1750077048101,-1000.0,0.00016438,3]
[366126044,1750077048111,-1004.0,0.00016438,3]
[366126046,1750077048121,-833.8156298,0.00016438,3]